[Event "Latvijas 2022. gada jauniešu čempionāta fināls"]
[Site "Riga, Latvia"]
[Date "2022.06.16"]
[Round "9.18"]
[White "Tolmacevs, Romans"]
[Black "Krakops, Martijs"]
[Result "1/2-1/2"]
[TimeControl "3600+30"]
[WhiteElo "1466"]
[BlackElo "1253"]

1. e4 {[%clk 01:01:00]} {[%emt 00:08:08]} e6 {[%clk 01:00:48]} {[%emt
00:00:13]} 2. d4 {[%clk 01:01:28]} {[%emt 00:00:02]} d5 {[%clk 01:01:12]}
{[%emt 00:00:05]} 3. Nc3 {[%clk 01:01:56]} {[%emt 00:00:03]} dxe4 {[%clk
01:01:37]} {[%emt 00:00:05]} 4. Nxe4 {[%clk 01:02:24]} {[%emt 00:00:02]} Bd7
{[%clk 01:01:59]} {[%emt 00:00:08]} 5. Nf3 {[%clk 01:02:48]} {[%emt 00:00:05]}
Bc6 {[%clk 01:02:23]} {[%emt 00:00:08]} 6. Bd3 {[%clk 01:03:16]} {[%emt
00:00:01]} Nd7 {[%clk 01:02:38]} {[%emt 00:00:14]} 7. O-O {[%clk 01:03:39]}
{[%emt 00:00:07]} Ngf6 {[%clk 01:02:43]} {[%emt 00:00:26]} 8. Ned2 {[%clk
01:04:04]} {[%emt 00:00:04]} Be7 {[%clk 01:02:44]} {[%emt 00:00:30]} 9. Re1
{[%clk 01:03:56]} {[%emt 00:00:38]} O-O {[%clk 01:02:55]} {[%emt 00:00:19]} 10.
c4 {[%clk 01:04:06]} {[%emt 00:00:19]} a5 {[%clk 01:00:51]} {[%emt 00:02:34]}
11. Qc2 {[%clk 01:00:49]} {[%emt 00:03:47]} b6 {[%clk 01:00:39]} {[%emt
00:00:43]} 12. a3 {[%clk 00:51:09]} {[%emt 00:10:10]} Bb7 {[%clk 01:00:19]}
{[%emt 00:00:49]} 13. b3 {[%clk 00:51:09]} {[%emt 00:00:30]} c5 {[%clk
01:00:26]} {[%emt 00:00:25]} 14. Bb2 {[%clk 00:44:37]} {[%emt 00:07:01]} h6
{[%clk 01:00:33]} {[%emt 00:00:22]} 15. Ne4 {[%clk 00:42:20]} {[%emt 00:02:47]}
cxd4 {[%clk 00:59:33]} {[%emt 00:01:30]} 16. Bxd4 {[%clk 00:42:12]} {[%emt
00:00:39]} Bc5 {[%clk 00:58:52]} {[%emt 00:01:12]} 17. Bxc5 {[%clk 00:35:48]}
{[%emt 00:06:53]} Nxc5 {[%clk 00:59:07]} {[%emt 00:00:15]} 18. Nxc5 {[%clk
00:35:51]} {[%emt 00:00:27]} bxc5 {[%clk 00:59:33]} {[%emt 00:00:03]} 19. Qe2
{[%clk 00:35:13]} {[%emt 00:01:08]} Qb6 {[%clk 00:58:24]} {[%emt 00:01:37]} 20.
Bc2 {[%clk 00:34:49]} {[%emt 00:00:56]} Rfd8 {[%clk 00:58:23]} {[%emt
00:00:32]} 21. Rad1 {[%clk 00:34:01]} {[%emt 00:01:17]} Rxd1 {[%clk 00:57:04]}
{[%emt 00:01:50]} 22. Rxd1 {[%clk 00:34:17]} {[%emt 00:00:14]} Rd8 {[%clk
00:57:32]} {[%emt 00:00:02]} 23. h3 {[%clk 00:29:43]} {[%emt 00:05:04]} Qc7
{[%clk 00:56:36]} {[%emt 00:01:26]} 24. Ne5 {[%clk 00:24:11]} {[%emt 00:06:02]}
Ba8 {[%clk 00:51:46]} {[%emt 00:05:20]} 1/2-1/2

[Event "Latvijas 2022. gada jauniešu čempionāta fināls"]
[Site "Riga, Latvia"]
[Date "2022.06.16"]
[Round "9.19"]
[White "Aleidzans, Vadims"]
[Black "Varpins, Kristians"]
[Result "1-0"]
[TimeControl "3600+30"]
[WhiteElo "1367"]
[BlackElo "1374"]

1. e4 {[%clk 01:00:57]} {[%emt 00:00:03]} e5 {[%clk 01:00:57]} {[%emt
00:00:04]} 2. Nf3 {[%clk 01:01:22]} {[%emt 00:00:04]} Nc6 {[%clk 01:01:24]}
{[%emt 00:00:04]} 3. Bb5 {[%clk 01:01:48]} {[%emt 00:00:04]} Nf6 {[%clk
01:01:43]} {[%emt 00:00:10]} 4. O-O {[%clk 01:02:11]} {[%emt 00:00:08]} Nxe4
{[%clk 01:02:07]} {[%emt 00:00:07]} 5. Re1 {[%clk 01:02:30]} {[%emt 00:00:10]}
Nd6 {[%clk 01:02:17]} {[%emt 00:00:19]} 6. Nxe5 {[%clk 01:02:54]} {[%emt
00:00:06]} Be7 {[%clk 01:02:32]} {[%emt 00:00:15]} 7. Nxc6 {[%clk 01:03:09]}
{[%emt 00:00:15]} dxc6 {[%clk 01:02:50]} {[%emt 00:00:12]} 8. Bf1 {[%clk
01:03:36]} {[%emt 00:00:03]} O-O {[%clk 01:03:04]} {[%emt 00:00:17]} 9. d4
{[%clk 01:04:00]} {[%emt 00:00:06]} Nf5 {[%clk 01:03:16]} {[%emt 00:00:18]} 10.
c3 {[%clk 01:04:21]} {[%emt 00:00:09]} Be6 {[%clk 01:02:58]} {[%emt 00:00:48]}
11. Bf4 {[%clk 01:04:26]} {[%emt 00:00:24]} Bd6 {[%clk 01:02:40]} {[%emt
00:00:49]} 12. Be5 {[%clk 01:04:10]} {[%emt 00:00:46]} Bxe5 {[%clk 00:54:26]}
{[%emt 00:08:44]} 13. Rxe5 {[%clk 01:03:22]} {[%emt 00:01:18]} Qd7 {[%clk
00:53:30]} {[%emt 00:01:25]} 14. Nd2 {[%clk 01:03:27]} {[%emt 00:00:26]} Kh8
{[%clk 00:52:19]} {[%emt 00:01:40]} 15. Ne4 {[%clk 00:56:04]} {[%emt 00:07:54]}
b6 {[%clk 00:44:40]} {[%emt 00:08:09]} 16. Ng5 {[%clk 00:55:18]} {[%emt
00:01:15]} Rae8 {[%clk 00:39:28]} {[%emt 00:05:41]} 17. Nxe6 {[%clk 00:53:06]}
{[%emt 00:02:42]} fxe6 {[%clk 00:39:40]} {[%emt 00:00:19]} 18. Qa4 {[%clk
00:46:24]} {[%emt 00:07:12]} Qf7 {[%clk 00:31:16]} {[%emt 00:08:54]} 19. Qc2
{[%clk 00:42:42]} {[%emt 00:04:12]} a5 {[%clk 00:26:21]} {[%emt 00:05:26]} 20.
Rae1 {[%clk 00:42:47]} {[%emt 00:00:24]} g6 {[%clk 00:21:25]} {[%emt 00:05:25]}
21. f3 {[%clk 00:40:50]} {[%emt 00:02:28]} Qd7 {[%clk 00:16:56]} {[%emt
00:05:00]} 22. Bc4 {[%clk 00:40:51]} {[%emt 00:00:29]} Rf6 {[%clk 00:15:22]}
{[%emt 00:02:04]} 23. Qb3 {[%clk 00:40:41]} {[%emt 00:00:40]} Ng7 {[%clk
00:14:26]} {[%emt 00:01:25]} 24. a4 {[%clk 00:40:58]} {[%emt 00:00:13]} Qd6
{[%clk 00:10:45]} {[%emt 00:04:10]} 25. R1e3 {[%clk 00:35:55]} {[%emt
00:05:35]} h6 {[%clk 00:04:29]} {[%emt 00:06:46]} 26. Re1 {[%clk 00:34:24]}
{[%emt 00:02:00]} Rf5 {[%clk 00:02:22]} {[%emt 00:02:37]} 27. Qc2 {[%clk
00:22:59]} {[%emt 00:11:56]} Rxe5 {[%clk 00:01:44]} {[%emt 00:01:07]} 28. Rxe5
{[%clk 00:23:01]} {[%emt 00:00:29]} Nf5 {[%clk 00:01:18]} {[%emt 00:00:56]} 29.
Qe4 {[%clk 00:23:07]} {[%emt 00:00:23]} Kg7 {[%clk 00:00:38]} {[%emt 00:01:10]}
30. Rxe6 {[%clk 00:23:04]} {[%emt 00:00:33]} Rxe6 {[%clk 00:00:48]} {[%emt
00:00:21]} 31. Qxe6 {[%clk 00:23:27]} {[%emt 00:00:07]} Qxe6 {[%clk 00:00:47]}
{[%emt 00:00:32]} 32. Bxe6 {[%clk 00:23:52]} {[%emt 00:00:04]} Ne3 {[%clk
00:01:04]} {[%emt 00:00:13]} 33. Bb3 {[%clk 00:23:38]} {[%emt 00:00:44]} b5
{[%clk 00:00:37]} {[%emt 00:00:57]} 34. axb5 {[%clk 00:21:39]} {[%emt
00:02:29]} cxb5 {[%clk 00:01:00]} {[%emt 00:00:08]} 35. Kf2 {[%clk 00:21:24]}
{[%emt 00:00:45]} Nf5 {[%clk 00:01:05]} {[%emt 00:00:26]} 36. g4 {[%clk
00:20:46]} {[%emt 00:01:08]} Nd6 {[%clk 00:00:54]} {[%emt 00:00:40]} 37. Bd5
{[%clk 00:19:38]} {[%emt 00:01:38]} Kf6 {[%clk 00:00:36]} {[%emt 00:00:49]} 38.
h4 {[%clk 00:20:00]} {[%emt 00:00:08]} g5 {[%clk 00:00:37]} {[%emt 00:00:29]}
39. hxg5+ {[%clk 00:18:01]} {[%emt 00:02:28]} hxg5 {[%clk 00:01:02]} {[%emt
00:00:05]} 40. Ke3 {[%clk 00:17:40]} {[%emt 00:00:51]} a4 {[%clk 00:00:33]}
{[%emt 00:01:01]} 41. Kd3 {[%clk 00:17:10]} {[%emt 00:00:58]} Kg6 {[%clk
00:00:32]} {[%emt 00:00:31]} 42. Kc2 {[%clk 00:16:25]} {[%emt 00:01:15]} Nc4
{[%clk 00:00:32]} {[%emt 00:00:30]} 43. Bxc4 {[%clk 00:16:35]} {[%emt
00:00:20]} bxc4 {[%clk 00:00:54]} {[%emt 00:00:08]} 44. Kb1 {[%clk 00:17:01]}
{[%emt 00:00:04]} 1-0

[Event "Latvijas 2022. gada jauniešu čempionāta fināls"]
[Site "Riga, Latvia"]
[Date "2022.06.16"]
[Round "9.20"]
[White "Francs, Marats"]
[Black "Paikens, Reinis"]
[Result "1-0"]
[TimeControl "3600+30"]
[WhiteElo "1882"]
[BlackElo "1534"]

1. d4 {[%clk 01:00:59]} d5 {[%clk 01:00:43]} {[%emt 00:00:17]} 2. c4 {[%clk
01:01:21]} {[%emt 00:00:08]} c6 {[%clk 01:01:05]} {[%emt 00:00:08]} 3. Nf3
{[%clk 01:01:46]} {[%emt 00:00:05]} Bf5 {[%clk 01:01:26]} {[%emt 00:00:09]} 4.
e3 {[%clk 01:01:53]} {[%emt 00:00:23]} e6 {[%clk 01:01:24]} {[%emt 00:00:32]} 5.
Nc3 {[%clk 01:01:57]} {[%emt 00:00:26]} Nf6 {[%clk 01:01:39]} {[%emt 00:00:15]}
6. Nh4 {[%clk 01:00:11]} {[%emt 00:02:16]} Bg6 {[%clk 01:01:50]} {[%emt
00:00:19]} 7. Qb3 {[%clk 01:00:03]} {[%emt 00:00:38]} Qc7 {[%clk 01:01:37]}
{[%emt 00:00:43]} 8. Bd2 {[%clk 00:59:15]} {[%emt 00:01:17]} Nbd7 {[%clk
01:01:19]} {[%emt 00:00:48]} 9. Nxg6 {[%clk 00:56:34]} {[%emt 00:03:12]} hxg6
{[%clk 01:01:37]} {[%emt 00:00:12]} 10. h3 {[%clk 00:49:26]} {[%emt 00:07:37]}
Be7 {[%clk 00:58:04]} {[%emt 00:04:03]} 11. Be2 {[%clk 00:48:40]} {[%emt
00:01:16]} g5 {[%clk 00:56:37]} {[%emt 00:01:58]} 12. O-O-O {[%clk 00:47:29]}
{[%emt 00:01:41]} O-O-O {[%clk 00:55:01]} {[%emt 00:02:06]} 13. Kb1 {[%clk
00:47:37]} {[%emt 00:00:22]} Qb6 {[%clk 00:53:20]} {[%emt 00:02:11]} 14. Qc2
{[%clk 00:44:12]} {[%emt 00:03:55]} Kb8 {[%clk 00:52:17]} {[%emt 00:01:33]} 15.
f3 {[%clk 00:39:30]} {[%emt 00:05:12]} Ka8 {[%clk 00:49:42]} {[%emt 00:03:06]}
16. Be1 {[%clk 00:35:38]} {[%emt 00:04:20]} dxc4 {[%clk 00:48:09]} {[%emt
00:02:04]} 17. Bxc4 {[%clk 00:35:49]} {[%emt 00:00:19]} g4 {[%clk 00:48:23]}
{[%emt 00:00:15]} 18. fxg4 {[%clk 00:32:36]} {[%emt 00:03:44]} Nxg4 {[%clk
00:47:31]} {[%emt 00:01:22]} 19. Qe2 {[%clk 00:32:55]} {[%emt 00:00:11]} Ndf6
{[%clk 00:41:00]} {[%emt 00:07:01]} 20. Rf1 {[%clk 00:31:40]} {[%emt 00:01:43]}
Nh6 {[%clk 00:40:35]} {[%emt 00:00:56]} 21. g4 {[%clk 00:31:33]} {[%emt
00:00:37]} Nd5 {[%clk 00:39:53]} {[%emt 00:01:13]} 22. e4 {[%clk 00:23:19]}
{[%emt 00:08:44]} Nxc3+ 23. Bxc3 {[%clk 00:23:47]} Bf6 {[%clk 00:28:39]} {[%emt
00:10:26]} 24. Qd2 {[%clk 00:21:10]} {[%emt 00:03:08]} Bxd4 {[%clk 00:25:16]}
{[%emt 00:03:54]} 25. Bxd4 {[%clk 00:19:17]} {[%emt 00:02:21]} c5 {[%clk
00:25:08]} {[%emt 00:00:40]} 26. Bxc5 {[%clk 00:19:37]} {[%emt 00:00:09]} Qc7
{[%clk 00:24:19]} {[%emt 00:01:19]} 27. Qe3 {[%clk 00:18:55]} {[%emt 00:01:12]}
Rc8 {[%clk 00:24:31]} {[%emt 00:00:17]} 28. b4 {[%clk 00:17:02]} {[%emt
00:02:24]} b6 {[%clk 00:24:40]} {[%emt 00:00:21]} 29. Ba6 {[%clk 00:17:04]}
{[%emt 00:00:28]} bxc5 {[%clk 00:23:43]} {[%emt 00:01:27]} 30. Bxc8 {[%clk
00:17:25]} {[%emt 00:00:09]} Rxc8 {[%clk 00:24:03]} {[%emt 00:00:10]} 31. Rc1
{[%clk 00:15:22]} {[%emt 00:02:35]} Qb7 {[%clk 00:24:23]} {[%emt 00:00:09]} 32.
a3 {[%clk 00:14:39]} {[%emt 00:01:13]} c4 {[%clk 00:24:29]} {[%emt 00:00:24]}
33. Qd4 {[%clk 00:14:36]} {[%emt 00:00:33]} 1-0

[Event "Latvijas 2022. gada jauniešu čempionāta fināls"]
[Site "Riga, Latvia"]
[Date "2022.06.16"]
[Round "9.21"]
[White "Springis, Jevgenijs"]
[Black "Otrohovs, Maksims"]
[Result "1-0"]
[TimeControl "3600+30"]
[WhiteElo "1975"]
[BlackElo "1098"]

1. c4 {[%clk 01:00:57]} {[%emt 00:00:01]} e5 {[%clk 01:00:57]} {[%emt
00:00:04]} 2. Nc3 {[%clk 01:01:19]} {[%emt 00:00:09]} Bb4 {[%clk 01:01:22]}
{[%emt 00:00:05]} 3. Qc2 {[%clk 01:00:27]} {[%emt 00:01:22]} Nf6 {[%clk
01:01:33]} {[%emt 00:00:18]} 4. e3 {[%clk 00:58:12]} {[%emt 00:02:45]} O-O
{[%clk 01:01:49]} {[%emt 00:00:14]} 5. Nge2 {[%clk 00:56:46]} {[%emt 00:01:56]}
c6 {[%clk 01:01:08]} {[%emt 00:01:11]} 6. a3 {[%clk 00:54:50]} {[%emt
00:02:27]} Bxc3 {[%clk 01:01:33]} {[%emt 00:00:05]} 7. dxc3 {[%clk 00:53:16]}
{[%emt 00:02:04]} d5 {[%clk 01:00:09]} {[%emt 00:01:53]} 8. Ng3 {[%clk
00:52:39]} {[%emt 00:01:08]} d4 {[%clk 00:59:02]} {[%emt 00:01:37]} 9. cxd4
{[%clk 00:51:58]} {[%emt 00:01:10]} exd4 {[%clk 00:59:28]} {[%emt 00:00:05]} 10.
exd4 {[%clk 00:52:12]} {[%emt 00:00:15]} Re8+ {[%clk 00:58:19]} {[%emt
00:01:39]} 11. Be2 {[%clk 00:50:49]} {[%emt 00:01:53]} Bg4 {[%clk 00:54:27]}
{[%emt 00:04:23]} 12. Be3 {[%clk 00:50:39]} {[%emt 00:00:40]} Bxe2 {[%clk
00:53:44]} {[%emt 00:01:13]} 13. Qxe2 {[%clk 00:50:39]} {[%emt 00:00:29]} c5
{[%clk 00:53:02]} {[%emt 00:01:13]} 14. dxc5 {[%clk 00:49:16]} {[%emt
00:01:52]} Nc6 {[%clk 00:53:06]} {[%emt 00:00:26]} 15. O-O {[%clk 00:48:02]}
{[%emt 00:01:44]} Qc7 {[%clk 00:48:34]} {[%emt 00:05:03]} 16. b4 {[%clk
00:46:43]} {[%emt 00:01:49]} a5 {[%clk 00:48:22]} {[%emt 00:00:42]} 17. b5
{[%clk 00:46:12]} {[%emt 00:01:01]} Nd4 {[%clk 00:48:43]} {[%emt 00:00:08]} 18.
Qd3 {[%clk 00:45:04]} {[%emt 00:01:36]} Ne6 {[%clk 00:49:00]} {[%emt 00:00:15]}
19. Qd6 {[%clk 00:43:37]} {[%emt 00:01:55]} Qc8 {[%clk 00:48:45]} {[%emt
00:00:48]} 20. Nf5 {[%clk 00:43:27]} {[%emt 00:00:39]} Kh8 {[%clk 00:35:28]}
{[%emt 00:13:47]} 21. c6 {[%clk 00:35:38]} {[%emt 00:08:19]} bxc6 {[%clk
00:34:48]} {[%emt 00:01:11]} 22. Qxc6 {[%clk 00:36:00]} {[%emt 00:00:07]} Nc7
{[%clk 00:35:07]} {[%emt 00:00:11]} 23. Nd6 {[%clk 00:36:08]} {[%emt 00:00:23]}
Qg4 {[%clk 00:34:18]} {[%emt 00:01:18]} 24. Qxc7 {[%clk 00:34:52]} {[%emt
00:01:47]} Rxe3 {[%clk 00:33:29]} {[%emt 00:01:18]} 25. fxe3 {[%clk 00:35:08]}
{[%emt 00:00:14]} Qe6 {[%clk 00:32:57]} {[%emt 00:01:02]} 26. b6 {[%clk
00:34:54]} {[%emt 00:00:45]} Qxe3+ {[%clk 00:33:09]} {[%emt 00:00:17]} 27. Kh1
{[%clk 00:35:18]} {[%emt 00:00:06]} h5 {[%clk 00:31:31]} {[%emt 00:02:08]} 28.
b7 {[%clk 00:35:34]} {[%emt 00:00:13]} Rg8 {[%clk 00:31:37]} {[%emt 00:00:25]}
29. b8=Q {[%clk 00:35:47]} {[%emt 00:00:17]} h4 {[%clk 00:31:52]} {[%emt
00:00:15]} 30. Qxg8+ {[%clk 00:35:45]} {[%emt 00:00:30]} Kxg8 {[%clk 00:32:07]}
{[%emt 00:00:18]} 31. Qxf7+ {[%clk 00:36:09]} {[%emt 00:00:04]} Kh8 {[%clk
00:32:15]} {[%emt 00:00:22]} 32. Rxf6 {[%clk 00:35:46]} {[%emt 00:00:54]} Qd4
{[%clk 00:32:13]} {[%emt 00:00:33]} 33. Qh5+ {[%clk 00:35:56]} {[%emt
00:00:18]} 1-0

[Event "Latvijas 2022. gada jauniešu čempionāta fināls"]
[Site "Riga, Latvia"]
[Date "2022.06.16"]
[Round "9.22"]
[White "Zajakins, Artjoms"]
[Black "Tabors, Emils"]
[Result "1/2-1/2"]
[TimeControl "3600+30"]
[WhiteElo "1596"]
[BlackElo "1813"]

1. d4 {[%clk 01:00:57]} {[%emt 00:00:02]} g6 {[%clk 01:00:57]} {[%emt
00:00:03]} 2. c4 {[%clk 01:01:19]} {[%emt 00:00:09]} Bg7 {[%clk 01:01:25]}
{[%emt 00:00:02]} 3. Nf3 {[%clk 01:01:29]} {[%emt 00:00:20]} d6 {[%clk
01:01:51]} {[%emt 00:00:04]} 4. g3 {[%clk 01:00:25]} {[%emt 00:01:34]} Nf6
{[%clk 01:01:48]} {[%emt 00:00:32]} 5. Bg2 {[%clk 01:00:34]} {[%emt 00:00:21]}
O-O {[%clk 01:02:08]} {[%emt 00:00:10]} 6. O-O {[%clk 01:00:43]} {[%emt
00:00:21]} Nbd7 {[%clk 01:02:32]} {[%emt 00:00:07]} 7. Nc3 {[%clk 00:59:56]}
{[%emt 00:01:17]} e5 {[%clk 01:02:50]} {[%emt 00:00:12]} 8. e4 {[%clk
00:58:36]} {[%emt 00:01:50]} exd4 {[%clk 01:03:12]} {[%emt 00:00:07]} 9. Nxd4
{[%clk 00:58:48]} {[%emt 00:00:19]} Nc5 {[%clk 01:03:26]} {[%emt 00:00:16]} 10.
b3 {[%clk 00:52:10]} {[%emt 00:07:08]} Re8 {[%clk 01:01:49]} {[%emt 00:02:07]}
11. Re1 {[%clk 00:47:06]} {[%emt 00:05:33]} Bg4 {[%clk 00:51:27]} {[%emt
00:10:52]} 12. Qd2 {[%clk 00:41:14]} {[%emt 00:06:22]} a5 {[%clk 00:49:08]}
{[%emt 00:02:50]} 13. Bb2 {[%clk 00:39:52]} {[%emt 00:01:52]} a4 {[%clk
00:48:32]} {[%emt 00:01:06]} 14. b4 {[%clk 00:35:29]} {[%emt 00:04:53]} a3
{[%clk 00:40:57]} {[%emt 00:08:06]} 15. Bc1 {[%clk 00:31:08]} {[%emt 00:04:50]}
Ncd7 {[%clk 00:36:44]} {[%emt 00:04:42]} 16. f4 {[%clk 00:26:03]} {[%emt
00:05:36]} Nb6 {[%clk 00:33:09]} {[%emt 00:04:06]} 17. Bf1 {[%clk 00:20:45]}
{[%emt 00:05:47]} Be6 {[%clk 00:25:54]} {[%emt 00:07:45]} 18. Nxe6 {[%clk
00:20:33]} {[%emt 00:00:42]} Rxe6 {[%clk 00:26:23]} {[%emt 00:00:02]} 19. Rb1
{[%clk 00:20:30]} {[%emt 00:00:32]} Nxe4 {[%clk 00:23:23]} {[%emt 00:03:31]} 20.
Nxe4 {[%clk 00:18:06]} {[%emt 00:02:53]} Qe7 {[%clk 00:23:36]} {[%emt
00:00:18]} 21. Qd3 {[%clk 00:16:11]} {[%emt 00:02:24]} f5 {[%clk 00:21:10]}
{[%emt 00:02:57]} 22. Bg2 {[%clk 00:15:09]} {[%emt 00:01:31]} Re8 {[%clk
00:19:26]} {[%emt 00:02:14]} 23. Qxa3 {[%clk 00:13:16]} {[%emt 00:02:23]} fxe4
{[%clk 00:18:05]} {[%emt 00:01:52]} 24. Qb3 {[%clk 00:12:27]} {[%emt 00:01:18]}
c5 {[%clk 00:14:30]} {[%emt 00:04:05]} 25. Be3 {[%clk 00:11:11]} {[%emt
00:01:46]} Kh8 {[%clk 00:13:04]} {[%emt 00:01:57]} 26. Rbd1 {[%clk 00:10:57]}
{[%emt 00:00:44]} Qc7 {[%clk 00:12:10]} {[%emt 00:01:23]} 27. b5 {[%clk
00:10:43]} {[%emt 00:00:44]} Nc8 {[%clk 00:10:04]} {[%emt 00:02:35]} 28. Qc2
{[%clk 00:08:30]} {[%emt 00:02:44]} b6 {[%clk 00:05:17]} {[%emt 00:05:17]} 29.
Re2 {[%clk 00:05:41]} {[%emt 00:03:19]} Bf6 {[%clk 00:04:25]} {[%emt 00:01:22]}
30. Bh3 {[%clk 00:04:52]} {[%emt 00:01:18]} R6e7 {[%clk 00:04:47]} {[%emt
00:00:09]} 31. Rde1 {[%clk 00:04:52]} {[%emt 00:00:30]} d5 {[%clk 00:03:51]}
{[%emt 00:01:27]} 32. cxd5 {[%clk 00:03:59]} {[%emt 00:01:22]} Nd6 {[%clk
00:04:00]} {[%emt 00:00:21]} 33. a4 {[%clk 00:03:19]} {[%emt 00:01:11]} Bd4
{[%clk 00:03:55]} {[%emt 00:00:35]} 34. Be6 {[%clk 00:03:28]} {[%emt 00:00:20]}
Qb7 {[%clk 00:03:05]} {[%emt 00:01:19]} 35. Bxd4+ {[%clk 00:03:22]} {[%emt
00:00:36]} cxd4 {[%clk 00:03:28]} {[%emt 00:00:08]} 36. Qb2 {[%clk 00:03:43]}
{[%emt 00:00:09]} Rxe6 {[%clk 00:00:43]} {[%emt 00:03:15]} 37. Qxd4+ {[%clk
00:03:58]} {[%emt 00:00:15]} Kg8 {[%clk 00:00:51]} {[%emt 00:00:21]} 38. dxe6
{[%clk 00:04:20]} {[%emt 00:00:09]} Rxe6 {[%clk 00:01:17]} {[%emt 00:00:04]} 39.
Rc1 {[%clk 00:04:04]} {[%emt 00:00:45]} Qe7 {[%clk 00:00:58]} {[%emt 00:00:50]}
40. Rc6 {[%clk 00:04:02]} {[%emt 00:00:31]} e3 {[%clk 00:00:49]} {[%emt
00:00:40]} 41. Rc3 {[%clk 00:03:45]} 1/2-1/2